Cogmind - Beta 11 *** ADVENTURER MODE // 2022.04.12 @ 14:35:23 Player: Honkmo Jones Result: Self-destructed Performance ------------- Evolutions (3) 1500 Regions Visited (6) 1200 Robots Destroyed (22) 110 Value Destroyed (1014) 1014 Prototype IDs (2) 40 Alien Tech Used (0) 0 Bonus (300) 300 TOTAL SCORE: 4164 Bonus ------- Aligned with FarCom 300 Cogmind --------- Core Integrity 609/700 Matter 300/300 Energy 100/100 System Corruption 0% Temperature Danger (401) Movement Walking (190) Ox1 Location -7/Factory Parts ------- > --- POWER (1) -------- (None) > --- PROPULSION (5) --- Improved Carbon-fiber Leg > --- UTILITY (4) ------ Large Storage Unit Advanced Visual Processing Unit Targeting Computer Hacking Suite > --- WEAPON (3) ------- Beam Cannon > --- INVENTORY (15) --- Ion Engine Huge Storage Unit Trap Scanner Medium Armor Plating Hacking Suite Skeleton Box Particle Gun Pulse Rifle Pulse Rifle Peak State ------------ > --- POWER ------------ Light Nuclear Core > --- PROPULSION ------- Light Treads Improved Carbon-fiber Leg Compact Wheel > --- UTILITY ---------- Large Storage Unit Advanced Visual Processing Unit Targeting Computer Hacking Suite > --- WEAPON ----------- Arc Projector Pulse Rifle Beam Cannon > --- INVENTORY -------- Ion Engine Huge Storage Unit Trap Scanner Medium Armor Plating Hacking Suite Skeleton Box Particle Gun Pulse Rifle Pulse Rifle [Rating: 27] Favorites ----------- Power Light Deuterium Engine Engine Light Deuterium Engine Power Core Light Nuclear Core Propulsion Compact Wheel Treads Light Treads Leg Improved Carbon-fiber Leg Wheel Compact Wheel Utility Hacking Suite Device Cooling System Storage Large Storage Unit Processor Visual Processing Unit Hackware Hacking Suite Weapon Advanced Beam Cannon Energy Gun EM Pulse Gun Energy Cannon Advanced Beam Cannon Ballistic Gun High-powered Shotgun Build | -11 -10 -10 -10 -9 -8 -7 ------- Run | Scr Mat Min Exi Min Mat Fac Slots Evolved 6 | . . . . . 4 2 Power . | . . . . . . . Propulsion 3 | . . . . . 2 1 Utility 2 | . . . . . 2 . Weapon 1 | . . . . . . 1 Parts Attached 40 | 7 4 . . 1 20 8 Power 7 | 2 . . . . 4 1 Engine 6 | 2 . . . . 4 . Core 1 | . . . . . . 1 Reactor . | . . . . . . . Propulsion 11 | 2 . . . 1 6 2 Treads 1 | . . . . . . 1 Leg 1 | . . . . . . 1 Wheel 9 | 2 . . . 1 6 . Hover . | . . . . . . . Flight . | . . . . . . . Utility 10 | 1 3 . . . 5 1 Device 2 | . . . . . 2 . Storage 4 | 1 2 . . . 1 . Processor 3 | . 1 . . . 1 1 Hackware 1 | . . . . . 1 . Protection . | . . . . . . . Artifact . | . . . . . . . Weapon 12 | 2 1 . . . 5 4 Energy Gun 7 | 2 . . . . 2 3 Energy Cannon 3 | . 1 . . . 1 1 Ballistic Gun 2 | . . . . . 2 . Ballistic Cannon . | . . . . . . . Launcher . | . . . . . . . Special Weapon . | . . . . . . . Impact Weapon . | . . . . . . . Slashing Weapon . | . . . . . . . Piercing Weapon . | . . . . . . . Special Melee Weapon . | . . . . . . . Unidentified Prototypes 2 | . 1 . . . 1 . Parts Lost 21 | . . . . . 14 7 Power 4 | . . . . . 2 2 Propulsion 9 | . . . . . 7 2 Utility 1 | . . . . . . 1 Weapon 7 | . . . . . 5 2 Highest Loss Streak 5 | . . . . . 4 5 To Critical Strikes 1 | . . . . . 1 . Average Slot Usage (%) 94 | . 96 100 100 100 98 70 Engine 9 | . 14 14 14 14 8 6 Wheel 29 | . 28 28 28 28 34 6 Device 6 | . . . . . 9 5 Storage 9 | . 14 14 14 14 9 7 Processor 10 | . 10 14 14 14 9 8 Hackware 6 | . . . . . 8 7 Energy Gun 9 | . 17 14 14 14 7 12 Energy Cannon 9 | . 10 14 14 14 8 7 Naked Turns . | . . . . . . . Heaviest Build 39 | 11 14 14 14 14 39 35 Greatest Support 64 | 26 26 26 26 32 64 18 Greatest Overweight (x) 2 | . . . . . 2 2 Average Overweight (x) . | . . . . . . 1 Largest Inventory Capacity 25 | 8 25 8 8 8 15 15 Average Capacity 12 | 7 8 8 8 8 14 15 Most Carried 13 | 6 9 8 8 8 13 11 Average Carried 9 | 3 7 8 8 7 10 9 Final Capacity 15 | 8 8 8 8 8 15 15 Final Carried 9 | 6 8 8 8 8 8 9 Class Distribution -------------------- 62% | Hacker-Mutant 28% | Mutant 9% | Hacker-Skirmisher Dominant Class ---------------- Mutant | -10/Materials Mutant | -10/Mines Mutant | -10/Exiles Mutant | -9/Mines Hacker-Mutant | -8/Materials Hacker-Skirmisher | -7/Factory Resources | -11 -10 -10 -10 -9 -8 -7 ----------- Run | Scr Mat Min Exi Min Mat Fac Matter Collected 636 | 205 . 60 . 45 216 110 Remotely . | . . . . . . . Salvage Created 1177 | . . 60 . 18 974 125 Parts 60 | . . 1 . . 49 10 Haulers Intercepted . | . . . . . . . Recyclers Shooed 1 | . . . . . 1 . Parts Field Recycled . | . . . . . . . Retrieved Matter . | . . . . . . . Parts Self-Destructed . | . . . . . . . Prevented . | . . . . . . . Kills | -11 -10 -10 -10 -9 -8 -7 ------- Run | Scr Mat Min Exi Min Mat Fac Combat Hostiles Destroyed 22 | . . 1 . 1 18 2 Guns 8 | . . . . . 6 2 Cannons 14 | . . 1 . 1 12 . Classes Destroyed 7 | . . 1 . 1 4 1 Recycler 1 | . . . . . 1 . Grunt 11 | . . 1 . . 10 . Brawler 1 | . . . . . 1 . Sentry 6 | . . . . . 5 1 Hunter 2 | . . . . . 2 . Programmer 1 | . . . . . . 1 Assembled 1 | . . . . 1 . . Best Kill Streak 7 | . . 1 . 1 7 1 Combat Bots Only 6 | . . 1 . 1 6 1 Max Kills in Single Turn 1 | . . 1 . 1 1 1 Gunslinging . | . . . . . . . Exploded . | . . . . . . . Melee . | . . . . . . . Uniques/NPCs Destroyed . | . . . . . . . Combat | -11 -10 -10 -10 -9 -8 -7 -------- Run | Scr Mat Min Exi Min Mat Fac Damage Taken 2062 | . . 8 . 43 1472 539 Core 464 | . . . . . 373 91 Absorbed by Shields . | . . . . . . . Regen/Repaired (Parts) 52 | . . . . . 52 . Core Remaining (%) 77 | 100 . . . 100 32 . Volleys Fired 74 | . 1 3 . 4 54 12 Largest 3 | . 2 2 . 2 2 3 Hottest 178 | . 108 108 . 108 108 178 Shots Fired 149 | . 2 6 . 8 103 30 Gun 80 | . 1 3 . 4 53 19 Cannon 69 | . 1 3 . 4 50 11 Launcher . | . . . . . . . Special . | . . . . . . . Kinetic 29 | . . . . . 29 . Thermal 77 | . 1 3 . 4 50 19 Explosive . | . . . . . . . Electromagnetic 43 | . 1 3 . 4 24 11 Robot Hit Streak 23 | . 1 4 . 4 23 13 Robot Miss Streak 4 | . 1 1 . 4 2 1 Penetration Max . | . . . . . . . Secondary Targets . | . . . . . . . Shots Hit Robots 115 | . 1 5 . 4 87 18 Core Hits 53 | . . 2 . 2 42 7 Critical Kills . | . . . . . . . Critical Parts Destroyed 1 | . . . . . 1 . Critical Strikes 1 | . . . . . 1 . Destroy 1 | . . . . . 1 . Melee Attacks . | . . . . . . . Impact . | . . . . . . . Slashing . | . . . . . . . Piercing . | . . . . . . . Sneak Attacks . | . . . . . . . Combat Hostiles . | . . . . . . . Follow-up Attacks . | . . . . . . . Damage Inflicted 2202 | . 21 79 . 63 1730 309 Guns 984 | . . 39 . 22 740 183 Cannons 1181 | . 21 40 . 41 953 126 Explosions 37 | . . . . . 37 . Melee . | . . . . . . . Ramming . | . . . . . . . Kinetic 499 | . . . . . 499 . Thermal 1331 | . 21 40 . 41 990 239 Explosive . | . . . . . . . Electromagnetic 372 | . . 39 . 22 241 70 Impact . | . . . . . . . Slashing . | . . . . . . . Piercing . | . . . . . . . Highest Corruption . | . . . . . . . Average Corruption . | . . . . . . . Corruption Purged . | . . . . . . . Corruption Blocked . | . . . . . . . Overload Shots . | . . . . . . . Overflow Damage . | . . . . . . . Projectiles . | . . . . . . . Explosions . | . . . . . . . Melee . | . . . . . . . Knockbacks . | . . . . . . . Impact . | . . . . . . . Kinetic . | . . . . . . . Secondary . | . . . . . . . Self-Inflicted Damage 31 | . . . . . 31 . Shots 1 | . . . . . 1 . Rammed . | . . . . . . . Targets Rammed . | . . . . . . . Kicked . | . . . . . . . Crushed . | . . . . . . . Highest Temperature 389 | . 48 82 . 164 16 389 Average Temperature 76 | . 26 38 . 69 6 111 Received Heat Transfer 1199 | . . 6 . 20 918 255 Effects 2 | . . . . . . 2 Interference 2 | . . . . . . 2 Siege Activations . | . . . . . . . Robots Corrupted . | . . . . . . . Combat Hostiles . | . . . . . . . Parts Fried 1 | . . . . . . 1 Impact Corruptions . | . . . . . . . Robots Melted . | . . . . . . . Combat Hostiles . | . . . . . . . Parts Melted 1 | . . . . . 1 . Heat Transferred 2381 | . 37 74 . 74 1715 481 Parts Sabotaged . | . . . . . . . Parts Stolen . | . . . . . . . Parts Stripped . | . . . . . . . Power Chain Reactions 1 | . . . . . 1 . Missiles Intercepted . | . . . . . . . Alert | -11 -10 -10 -10 -9 -8 -7 ------- Run | Scr Mat Min Exi Min Mat Fac Peak Influence 198 | . 22 37 . . 198 108 Initial 37 | . . 7 . . . 37 Average 35 | . 10 29 . . 37 54 Maximum Alert Level . | . . . . . . . Low Security (%) 100 | 100 100 100 . 100 100 100 Level 1 . | . . . . . . . Level 2 . | . . . . . . . Level 3 . | . . . . . . . Level 4 . | . . . . . . . Level 5 . | . . . . . . . High Security . | . . . . . . . Max Security . | . . . . . . . Squads Dispatched 7 | . 1 . . . 4 2 Investigation 4 | . 1 . . . 3 . Extermination 1 | . . . . . . 1 Reinforcement 2 | . . . . . 1 1 Assault . | . . . . . . . Garrison . | . . . . . . . Intercept . | . . . . . . . Searches Triggered . | . . . . . . . Construction Impeded . | . . . . . . . Haulers Reinforced . | . . . . . . . Active Scanning Responses . | . . . . . . . Cargo Convoy Interrupts . | . . . . . . . Stealth | -11 -10 -10 -10 -9 -8 -7 --------- Run | Scr Mat Min Exi Min Mat Fac Distress Signals 2 | . . . . . 2 . Communications Jammed . | . . . . . . . Distress Signals . | . . . . . . . Times Spotted 47 | . 1 2 . 7 29 8 Peak Tracking Total 7 | . 1 2 . 7 7 4 Tactical Retreats 4 | . . . . 2 1 1 Traps | -11 -10 -10 -10 -9 -8 -7 ------- Run | Scr Mat Min Exi Min Mat Fac Traps Triggered 3 | . . . . . 2 1 Indirectly . | . . . . . . . Trap Hack Attempts . | . . . . . . . Triggered . | . . . . . . . Disarmed . | . . . . . . . Reprogrammed . | . . . . . . . Reused . | . . . . . . . Traps Extracted . | . . . . . . . Installed . | . . . . . . . Triggered . | . . . . . . . Machines | -11 -10 -10 -10 -9 -8 -7 ---------- Run | Scr Mat Min Exi Min Mat Fac Machines Disabled . | . . . . . . . Max in Single Turn . | . . . . . . . Machines Sabotaged . | . . . . . . . Garrisons Compromised . | . . . . . . . Overloaded Fab Kills . | . . . . . . . Hacking | -11 -10 -10 -10 -9 -8 -7 --------- Run | Scr Mat Min Exi Min Mat Fac Machines Accessed 13 | . 2 . 1 . 9 1 Terminals 10 | . 2 . . . 7 1 Fabricators . | . . . . . . . Repair Stations 2 | . . . . . 2 . Recycling Units . | . . . . . . . Scanalyzers . | . . . . . . . Garrison Access . | . . . . . . . Total Hacks 46 | . 6 . 3 . 35 2 Successful 36 | . 4 . 3 . 28 1 Failed 9 | . 2 . . . 6 1 Catastrophic . | . . . . . . . Database Lockouts 1 | . . . . . 1 . Manual 36 | . 6 . 1 . 27 2 Terminals 39 | . 6 . . . 31 2 Fabricators . | . . . . . . . Repair Stations 4 | . . . . . 4 . Recycling Units . | . . . . . . . Scanalyzers . | . . . . . . . Garrison Access . | . . . . . . . Terminal Hacks 20 | . 2 . 3 . 15 . Record 3 | . . . 3 . . . Robot Analysis 5 | . 2 . . . 3 . Level Access Points 1 | . . . . . 1 . Emergency Access Points 1 | . . . . . 1 . Terminal Index 1 | . . . . . 1 . Alert Level 2 | . . . . . 2 . Unreport Threat 2 | . . . . . 2 . Locate Traps 2 | . . . . . 2 . Patrol Status 1 | . . . . . 1 . Investigation Status 1 | . . . . . 1 . Zone Layout 1 | . . . . . 1 . Fabricator Hacks . | . . . . . . . Repair Station Hacks 4 | . . . . . 4 . Scan Component 2 | . . . . . 2 . Repair 2 | . . . . . 2 . Recycling Unit Hacks . | . . . . . . . Scanalyzer . | . . . . . . . Garrison Access Hacks . | . . . . . . . Unauthorized Hacks 12 | . 2 . . . 9 1 Terminals 12 | . 2 . . . 9 1 Track 3 | . . . . . 3 . Assimilate 1 | . . . . . 1 . Botnet 8 | . 2 . . . 5 1 Fabricators . | . . . . . . . Repair Stations . | . . . . . . . Recycling Units . | . . . . . . . Scanalyzers . | . . . . . . . Garrison Access . | . . . . . . . Data Cores Recovered . | . . . . . . . Used . | . . . . . . . Hacking Detections 10 | . 1 . . . 8 1 Full Trace Events 8 | . 1 . . . 7 . Feedback Events . | . . . . . . . Feedback Blocked . | . . . . . . . Robot Schematics Acquired . | . . . . . . . Robots Built . | . . . . . . . Authchips . | . . . . . . . Time . | . . . . . . . Total Robot Build Rating . | . . . . . . . Part Schematics Acquired . | . . . . . . . Parts Built . | . . . . . . . Authchips . | . . . . . . . Time . | . . . . . . . Total Part Build Rating . | . . . . . . . Parts Repaired 2 | . . . . . 2 . Time 64 | . . . . . 64 . Parts Recycled . | . . . . . . . Recycled Matter . | . . . . . . . Retrieved Matter . | . . . . . . . Retrieved Components . | . . . . . . . Parts Scanalyzed . | . . . . . . . Part Schematics Acquired . | . . . . . . . Parts Damaged . | . . . . . . . Bothacking | -11 -10 -10 -10 -9 -8 -7 ------------ Run | Scr Mat Min Exi Min Mat Fac Used RIF Installer . | . . . . . . . Robots Hacked . | . . . . . . . Non-combat . | . . . . . . . Combat . | . . . . . . . Robot Hacks Applied . | . . . . . . . Relay Couplers Released . | . . . . . . . Fabnet Peak Effective % . | . . . . . . . Robots Rewired . | . . . . . . . Allies Hacked . | . . . . . . . Hacks Repelled . | . . . . . . . Allies | -11 -10 -10 -10 -9 -8 -7 -------- Run | Scr Mat Min Exi Min Mat Fac Total Allies 2 | . . . . 2 . . Largest Group 2 | . . . . 2 . . Highest-Rated Group 49 | . . . . 49 . . Highest-Rated Ally 31 | . . . . 31 . . Total Orders . | . . . . . . . Ally Attacks 7 | . . . . 7 . . Total Damage 102 | . . . . 102 . . Kills 2 | . . . . 2 . . Allies Corrupted 1 | . . . . 1 . . Allies Melted 1 | . . . . 1 . . Intel | -11 -10 -10 -10 -9 -8 -7 ------- Run | Scr Mat Min Exi Min Mat Fac Robot Analysis Total 5 | . 2 . . . 3 . Derelict Logs Recovered 1 | . . 1 . . . . Drone Launches . | . . . . . . . Drone Recoveries . | . . . . . . . Exploration | -11 -10 -10 -10 -9 -8 -7 ------------- Run | Scr Mat Min Exi Min Mat Fac Turns Passed 3580 | 60 176 101 444 174 2155 470 Spaces Moved 2117 | 52 154 91 492 173 961 194 Core 15 | 15 . . . . . . Treads . | . . . . . . . Legs 82 | . . . . . . 82 Wheels 2020 | 37 154 91 492 173 961 112 Hover . | . . . . . . . Flight . | . . . . . . . Fastest Speed 50 | 50 90 90 90 90 86 115 Average Speed 98 | 78 90 90 90 90 97 149 Slowest Speed 190 | 90 90 90 90 100 130 190 Overloaded Moves . | . . . . . . . Propulsion Burnouts . | . . . . . . . Robots Hopped . | . . . . . . . Cave-ins Triggered . | . . . . . . . Exploration Rate (%) 42 | 3 30 37 93 48 81 8 Regions Visited 6 Branch Regions 3 Pre-discovered Areas 1 | . . 1 . . . . Known Exits Taken 1 | . . . . . 1 . Unknown Exits Taken 5 | 1 1 1 1 1 . . Scrap Searched 1 | . . . . 1 . . Spaces Dug . | . . . . . . . Terrain Destroyed 2 | . . . . . 2 . Melee . | . . . . . . . Projectile . | . . . . . . . AOE 2 | . . . . . 2 . Terrain Rammed . | . . . . . . . Walls Destroyed . | . . . . . . . Machines Disabled . | . . . . . . . Actions | -11 -10 -10 -10 -9 -8 -7 --------- Run | Scr Mat Min Exi Min Mat Fac Total 3461 | 70 191 103 493 182 2075 347 Wait 1174 | . 18 10 . 3 1020 123 Move 2111 | 51 153 90 491 172 960 194 Hop . | . . . . . . . Pick Up 49 | 12 8 . 1 1 19 8 Fast Attach 1 | . 1 . . . . . Attach 28 | 6 . . . . 16 6 Detach . | . . . . . . . Swap 11 | 1 3 . . 1 4 2 Drop 12 | . 7 . 1 1 2 1 Fire 74 | . 1 3 . 4 54 12 Melee . | . . . . . . . Ram . | . . . . . . . Kick . | . . . . . . . Crush . | . . . . . . . Escape Stasis . | . . . . . . . Rewire 1 | . . . . . . 1 Trap . | . . . . . . . Miscellaneous . | . . . . . . . Route ------- -11/Scrapyard -10/Materials -10/Mines (discovered 2 exits: [*Mat] / *Exi) -10/Exiles (discovered 2 exits: [*Min x2]) -9/Mines -8/Materials (discovered 3 exits: *Fac x3) -7/Factory History --------- Turn | Location | Event 33 | -11/Scrapyard | Discovered new exit (range 13) 61 | -11/Scrapyard | Entered Materials 148 | -10/Materials | Met 8R-AWN 182 | -10/Materials | Discovered new exit (range 14) 237 | -10/Materials | Entered Mines 238 | -10/Mines | Met a Derelict bent on vengeance 238 | -10/Mines | Followed 8R-AWN into the Mines 251 | -10/Mines | Discovered new exit (range 9) 299 | -10/Mines | Learned location of Zion (-7) 301 | -10/Mines | Build established: Mutant 334 | -10/Mines | Discovered new exit (range 5) 338 | -10/Mines | Entered Exiles 352 | -10/Exiles | Discovered new exit (range 15) 370 | -10/Exiles | Welcomed by 8R-AWN 386 | -10/Exiles | Met EX-HEX 420 | -10/Exiles | Met EX-DEC 482 | -10/Exiles | Visited The Gauntlet 600 | -10/Exiles | Met EX-BIN 624 | -10/Exiles | Aligned with FarCom system 625 | -10/Exiles | Given EX-Vault access code 686 | -10/Exiles | Opened EX-Vault 690 | -10/Exiles | Found Prototype Device 709 | -10/Exiles | Warned to stay clear of 0b10 Research branches 769 | -10/Exiles | Discovered new exit (range 15) 782 | -10/Exiles | Left Exiles lab with Skeleton Box 782 | -10/Exiles | Entered Mines 783 | -9/Mines | Assembled infested the area 788 | -9/Mines | Assisted by a Guerilla fighting off Assembled 794 | -9/Mines | Found a damaged Exp. Sensor Array with a note attached 940 | -9/Mines | Discovered new exit (range 4) 956 | -9/Mines | Entered Materials 956 | -8/Materials | Evolved 4 slots: Propulsion x2, Utility x2 958 | -8/Materials | Identified Skeleton Box 1325 | -8/Materials | Build established: Hacker-Mutant 1654 | -8/Materials | Repaired EM Pulse Gun 1714 | -8/Materials | Discovered new exit (range 5) 1917 | -8/Materials | Repaired Lgt. Deuterium Engine 1996 | -8/Materials | Identified exit to Factory 2857 | -8/Materials | Central database locked down 3023 | -8/Materials | Lost 4 parts (1p2n1w) 3056 | -8/Materials | Core integrity fell below 50% 3111 | -8/Materials | Entered Factory 3111 | -7/Factory | Evolved 2 slots: Propulsion x1, Weapon x1 3127 | -7/Factory | Lost 4 parts (1p1n2w) 3570 | -7/Factory | Build established: Hacker-Skirmisher 3581 | -7/Factory | Self-destructed Last Messages --------------- 03473_ Acquired 50 matter. 03501_ Cooling System destroyed. 03502_ ALERT: Hostiles spotted, dispatching reinforcements to Terminal F016. 03509_ Y-54 Guardian heat spikes uncontrollably. 03510_ Y-54 Guardian heat damages Lgt. Treads, Imp. Deuterium Engine, Gatling Laser. 03533_ Lgt. Ion Engine destroyed. 03535_ Imp. Heat Sink fried. 03535_ Y-54 Guardian destroyed. 03540_ Acquired 50 matter. 03548_ Acquired Lgt. Treads. 03550_ Acquired 10 matter. 03570_ Lgt. Treads destroyed. 03577_ Arc Projector destroyed. 03577_ Com. Wheel destroyed. 03579_ Overheating: System interference. 03579_ Beam Cannon temporarily disabled. 03579_ Adv. Visual Processing Unit temporarily disabled. 03581_ Lgt. Nuclear Core destroyed. 03581_ Pulse Rifle destroyed. Map ----- +----------------------------------------------------+ | # #?????? + "" "" + #??????????? | | # #?????? ########+### ""F"" #### #??????????? | | # #???????????????? ?# """ #??# #??????????? | | # #######+######?????# #??# #??????????? | | # # | ! #????#####"####### #??????????? | | # # #????# #??????????? | | # # ! #????# #??????????? | | # # #????# #??????????? | | # # """ """ #????# #########??????????? | | # # """ """ #????# #??????????????????? | | # + """ """ #????# #??????????????????? | | # # ###### #??????????????????? | | # # """ """ + #??????????????????? | | # # """ """ ########## #??????????????????? | | # # """ """ #????????# #??????????????????? | | # #????????# #??????????????????? | | ##############????????# #??????????????????? | | #?????????????????????#|#??????????????????? | | #?????????###########?#!#??????????????????? | | #?????????# """ """ ### ###????????????????? | | """ #?????????# """ """ # [=! #????????????????? | | """ #?????????# """ """ # ! #????????????????? | | """ #?????????# Y + #????????????????? | | ?? #?????????# g # #????????????????? | | ??" #?????????# gg# ! #????????????????? | | ???" ??????????# [ @## [%##????????????????? | | ???? ??????????# ## !#?????????????????? | | ???? ??????????############ #?????????????????? | | ???? ?????????????????????# #?????????????????? | | ???????????????????????????# #?????????????????? | | ???????????????????????????# #?????????????????? | | ???????????????????????????# #?????????????????? | | ???????????????????????????# +?????????????????? | | ???????????????????????????# #?????????????????? | | ???????????????????????????# #?????????????????? | | ??????????????????????????? ?????????????????? | | ??????????????????????????? ?????????????????? | | ??????????????????????????? ?????????????????? | | ?????????????????????????? ????????????????? | | ?????????????????????????? ????????????????? | | ?????????????????????????? ????????????????? | | ?????????????????????????? ????????????????? | | ??????????????????????????# #????????????????? | | ??????????????????????????# ?????????????????? | | ???????????????????????????? ?????????????????? | | ?????????????????????????????????????????????????? | | ?????????????????????????????????????????????????? | | ?????????????????????????????????????????????????? | | ?????????????????????????????????????????????????? | | ?????????????????????????????????????????????????? | +----------------------------------------------------+ Best States ------------- Heat Dissipation 56 Energy Generation 16 Energy Capacity 290 Matter Stores 300 Matter Capacity 300 Sight Range 20 Terrain Scan Density 10 Resistance: KI 20 Resistance: TH 20 Resistance: EX 20 Resistance: EM 20 Resistance: I 20 Resistance: S 20 Resistance: P 20 Evasion (%) 50 Targeting Accuracy 5 Recoil Reduction 1 Offensive Hacking 20 Item Schematics ----------------- None Robot Schematics ------------------ None Fabricated ------------ Nothing Alien Tech Used ----------------- None Achievements -------------- None Challenges ------------ None Game ------ Seed ConcussiveSeismicStick Manual? 0 Play Time 00:29:43 Cumulative 19.7 hours Start 2022.04.12 @ 14:02:27 End 2022.04.12 @ 14:35:23 Sessions 3 Manual Loads 0 Difficulty Adventurer Special Mode None Game No. 42 Rogue 35 Adventurer 7 Explorer 0 Win Type - Total 0 Types 0/0/0/0/0/0/0/0/0 Lore% 15 Gallery% 22 Achievement% 20 Wizard Run 0 Options --------- ASCII 0 Keyboard 0 Movement Mouse Keybinds 0 Fullscreen 2 Font 14/Dina Map View 84x54 Tactical HUD 1 Map Filters NONE Filters NONE Steam 1 RUN: c61ed126-2a2c-404d-9328-3ec225f37220